Cogmind - Beta 16 @@@ ROGUE MODE // 2025.12.19 @ 21:38:31 Player: TheGamingJasper Result: Self-destructed Performance ------------- Evolutions (1) 500 Regions Visited (3) 600 Robots Destroyed (3) 15 Value Destroyed (137) 137 Prototype IDs (0) 0 Alien Tech Used (0) 0 Bonus (200) 200 TOTAL SCORE: 1452 Bonus ------- Pacifist 200 Cogmind --------- Core Integrity 209/400 Matter 246/300 Energy 100/100 System Corruption 0% Temperature Critical (515) Movement Core (250) Ox4 Location -9/Materials Parts ------- > --- POWER (1) -------- Improved Ion Engine > --- PROPULSION (4) --- (None) > --- UTILITY (2) ------ Small Storage Unit Targeting Computer > --- WEAPON (2) ------- Particle Gun > --- INVENTORY (8) ---- Ion Engine Targeting Computer Particle Gun Particle Gun Rocket Launcher Peak State ------------ > --- POWER ------------ Ion Engine > --- PROPULSION ------- Aluminum Leg Aluminum Leg > --- UTILITY ---------- Small Storage Unit Terrain Scanner > --- WEAPON ----------- Beam Rifle Particle Gun > --- INVENTORY -------- Ion Engine Improved Ion Engine EM Pulse Gun Particle Gun Particle Gun Rocket Launcher [Rating: 10] Favorites ----------- Power Ion Engine Engine Ion Engine Propulsion Aluminum Leg Leg Aluminum Leg Utility Small Storage Unit Device Terrain Scanner Storage Small Storage Unit Processor Targeting Computer Weapon EM Pulse Gun Energy Gun EM Pulse Gun Build | -11 -10 -10 -9 ------- Run | Yrd Mat Min Mat Slots Evolved 2 | . . . 2 Power . | . . . . Propulsion 2 | . . . 2 Utility . | . . . . Weapon . | . . . . Parts Attached 12 | 6 1 . 5 Power 2 | 1 . . 1 Engine 2 | 1 . . 1 Core . | . . . . Reactor . | . . . . Propulsion 2 | 2 . . . Treads . | . . . . Leg 2 | 2 . . . Wheel . | . . . . Hover . | . . . . Flight . | . . . . Utility 3 | 1 1 . 1 Device 1 | . 1 . . Storage 1 | 1 . . . Processor 1 | . . . 1 Hackware . | . . . . Protection . | . . . . Artifact . | . . . . Weapon 5 | 2 . . 3 Energy Gun 5 | 2 . . 3 Energy Cannon . | . . . . Ballistic Gun . | . . . . Ballistic Cannon . | . . . . Launcher . | . . . . Special Weapon . | . . . . Impact Weapon . | . . . . Slashing Weapon . | . . . . Piercing Weapon . | . . . . Special Melee Weapon . | . . . . Unidentified Prototypes . | . . . . Parts Lost 3 | . . . 3 Power . | . . . . Propulsion 2 | . . . 2 Utility . | . . . . Weapon 1 | . . . 1 Highest Loss Streak 3 | . . . 3 To Critical Strikes . | . . . . Average Backups 2 | 2 2 2 4 Power 1 | . 1 1 1 Propulsion . | . . . . Utility . | . . . . Weapon 1 | 1 1 1 2 Tool/Special . | . . . . Unused Backups 6 | . . . 6 Power 1 | . . . 1 Propulsion . | . . . . Utility 1 | . . . 1 Weapon 4 | . . . 4 Tool/Special . | . . . . Average Slot Usage (%) 84 | . 94 100 74 Engine 12 | . 14 14 11 Leg 23 | . 28 28 19 Device 9 | . 8 14 7 Storage 12 | . 14 14 11 Processor 2 | . . . 3 Energy Gun 24 | . 28 28 21 Peak Build Rating 10 | 6 7 7 10 Average Rating 7 | 4 6 7 8 On Entrance 5 | . 6 7 7 Avg Prop Armor Cover (%) . | . . . . Naked Turns . | . . . . Heaviest Build 19 | 14 15 15 19 Greatest Support 20 | 20 20 20 20 Greatest Overweight (x) . | . . . . Average Overweight (x) . | . . . . Largest Inventory Capacity 8 | 8 8 8 8 Average Capacity 7 | 6 8 8 8 Most Carried 6 | 5 3 2 6 Average Carried 3 | 2 2 2 4 Final Capacity 8 | 8 8 8 8 Final Carried 5 | 2 2 2 5 Class Distribution -------------------- 100% | Mutant Dominant Class ---------------- Mutant | -10/Materials Mutant | -10/Mines Mutant | -9/Materials Resources | -11 -10 -10 -9 ----------- Run | Yrd Mat Min Mat Matter Collected 280 | 204 . . 76 Remotely . | . . . . Salvage Created 173 | . . . 173 Parts 3 | . . . 3 Haulers Intercepted . | . . . . Recyclers Shooed . | . . . . Parts Field Recycled . | . . . . Retrieved Matter . | . . . . Parts Self-Destructed . | . . . . Prevented . | . . . . Parts Restored . | . . . . Kills | -11 -10 -10 -9 ------- Run | Yrd Mat Min Mat Combat Hostiles Destroyed 3 | . . . 3 Guns 2 | . . . 2 Classes Destroyed 2 | . . . 2 Grunt 1 | . . . 1 Sentry 2 | . . . 2 Best Kill Streak 2 | . . . 2 Combat Bots Only 2 | . . . 2 Max Kills in Single Turn 1 | . . . 1 Gunslinging . | . . . . Exploded . | . . . . Melee . | . . . . Uniques/NPCs Destroyed . | . . . . Combat | -11 -10 -10 -9 -------- Run | Yrd Mat Min Mat Hostile Shots Fired 45 | . 1 . 44 Missed 11 | . . . 11 Hits 34 | . 1 . 33 Projectile 34 | . 1 . 33 Critical Strikes 3 | . . . 3 Damage Taken 603 | . 12 . 591 Core 191 | . . . 191 Absorbed by Shields . | . . . . Core Remaining (%) 100 | 100 . 100 . Volleys Fired 19 | . 1 . 18 Largest 2 | . 2 . 2 Hottest 121 | . 90 . 121 Shots Fired 37 | . 2 . 35 Gun 37 | . 2 . 35 Cannon . | . . . . Launcher . | . . . . Special . | . . . . Kinetic . | . . . . Thermal 29 | . 1 . 28 Explosive . | . . . . Electromagnetic 8 | . 1 . 7 Robot Hit Streak 12 | . 1 . 12 Robot Miss Streak 1 | . 1 . 1 Penetration Max . | . . . . Secondary Targets 1 | . . . 1 Max Gunslinging Chain 1 | . . . 1 Shots Hit Robots 30 | . 1 . 29 Core Hits 7 | . 1 . 6 Critical Kills . | . . . . Critical Parts Destroyed . | . . . . Critical Strikes 7 | . . . 7 Burn 7 | . . . 7 Melee Attacks . | . . . . Impact . | . . . . Slashing . | . . . . Piercing . | . . . . Sneak Attacks . | . . . . Combat Hostiles . | . . . . Follow-up Attacks . | . . . . Damage Inflicted 411 | . 12 . 399 Guns 411 | . 12 . 399 Cannons . | . . . . Explosions . | . . . . Melee . | . . . . Ramming . | . . . . Kinetic . | . . . . Thermal 344 | . 12 . 332 Explosive . | . . . . Electromagnetic 67 | . . . 67 Impact . | . . . . Slashing . | . . . . Piercing . | . . . . Highest Corruption . | . . . . Average Corruption . | . . . . Corruption Purged . | . . . . Corruption Blocked . | . . . . Overload Shots . | . . . . Overflow Damage . | . . . . Projectiles . | . . . . Explosions . | . . . . Melee . | . . . . Knockbacks . | . . . . Impact . | . . . . Kinetic . | . . . . Secondary . | . . . . Self-Inflicted Damage . | . . . . Shots . | . . . . Rammed . | . . . . Targets Rammed . | . . . . Kicked . | . . . . Crushed . | . . . . Highest Temperature 628 | . 30 . 628 Average Temperature 253 | . 18 . 267 Received Heat Transfer 276 | . 6 . 270 Effects 11 | . . . 11 Shutdowns 1 | . . . 1 Interference 3 | . . . 3 Matter Decay 1 | . . . 1 Short Circuit 2 | . . . 2 Damage (major) 2 | . . . 2 Damage (core) 2 | . . . 2 Siege Activations . | . . . . Martial Activations . | . . . . Shielding Activations . | . . . . Robots Disrupted . | . . . . Combat Hostiles . | . . . . Robots Corrupted . | . . . . Combat Hostiles . | . . . . Parts Fried . | . . . . Impact Corruptions . | . . . . Robots Melted 1 | . . . 1 Combat Hostiles 1 | . . . 1 Parts Melted 2 | . . . 2 Heat Transferred 1406 | . 37 . 1369 Parts Sabotaged . | . . . . Parts Stolen . | . . . . Parts Stripped . | . . . . Power Chain Reactions . | . . . . Alert | -11 -10 -10 -9 ------- Run | Yrd Mat Min Mat Maximum Alert Level . | . . . . Low Security (%) 100 | 100 100 100 100 Level 1 . | . . . . Level 2 . | . . . . Level 3 . | . . . . Level 4 . | . . . . Level 5 . | . . . . High Security . | . . . . Max Security . | . . . . Peak Influence 50 | . . . 50 Initial . | . . . . Average 7 | . . . 16 Influence Increases 90 | . . . 90 Destroy 0b10 Robot/C 60 | . . . 60 Destroy Leader 30 | . . . 30 Influence Decreases 90 | . . . 90 Time Decay 60 | . . . 60 Lost Part 30 | . . . 30 Squads Dispatched 1 | . 1 . . Investigation . | . . . . Extermination . | . . . . Reinforcement 1 | . 1 . . Assault . | . . . . Garrison . | . . . . Intercept . | . . . . Searches Triggered . | . . . . Construction Impeded . | . . . . Haulers Reinforced . | . . . . Active Scanning Responses . | . . . . Cargo Convoy Interrupts . | . . . . Stealth | -11 -10 -10 -9 --------- Run | Yrd Mat Min Mat Distress Signals 1 | . . . 1 Communications Jammed . | . . . . Distress Signals . | . . . . Times Spotted 9 | . 3 . 6 Peak Tracking Total 4 | . 2 . 4 Tactical Retreats . | . . . . Traps | -11 -10 -10 -9 ------- Run | Yrd Mat Min Mat Traps Triggered . | . . . . Indirectly . | . . . . Trap Hack Attempts . | . . . . Triggered . | . . . . Disarmed . | . . . . Reprogrammed . | . . . . Reused . | . . . . Traps Extracted . | . . . . Installed . | . . . . Triggered . | . . . . Machines | -11 -10 -10 -9 ---------- Run | Yrd Mat Min Mat Machines Disabled . | . . . . Max in Single Turn . | . . . . Machines Repaired . | . . . . Machines Dismantled . | . . . . Machines Sabotaged . | . . . . Overloaded Fab Kills . | . . . . Hacking | -11 -10 -10 -9 --------- Run | Yrd Mat Min Mat Machines Accessed 1 | . . . 1 Terminals 1 | . . . 1 Fabricators . | . . . . Repair Stations . | . . . . Recycling Units . | . . . . Scanalyzers . | . . . . Garrison Access . | . . . . Total Hacks 1 | . . . 1 Successful . | . . . . Failed 1 | . . . 1 Catastrophic 1 | . . . 1 Database Lockouts . | . . . . Manual 1 | . . . 1 Terminals 1 | . . . 1 Fabricators . | . . . . Repair Stations . | . . . . Recycling Units . | . . . . Scanalyzers . | . . . . Garrison Access . | . . . . Terminal Hacks . | . . . . Fabricator Hacks . | . . . . Repair Station Hacks . | . . . . Recycling Unit Hacks . | . . . . Scanalyzer . | . . . . Garrison Access Hacks . | . . . . Unauthorized Hacks . | . . . . Terminals . | . . . . Fabricators . | . . . . Repair Stations . | . . . . Recycling Units . | . . . . Scanalyzers . | . . . . Garrison Access . | . . . . Data Cores Recovered . | . . . . Used . | . . . . Hacking Detections 1 | . . . 1 Full Trace Events . | . . . . Feedback Events . | . . . . Feedback Blocked . | . . . . Robot Schematics Acquired . | . . . . Robots Built . | . . . . Authchips . | . . . . Time . | . . . . Total Robot Build Rating . | . . . . Part Schematics Acquired . | . . . . Parts Built . | . . . . Authchips . | . . . . Time . | . . . . Total Part Build Rating . | . . . . Part Studies Acquired . | . . . . Parts Repaired . | . . . . Time . | . . . . Parts Recycled . | . . . . Recycled Matter . | . . . . Retrieved Matter . | . . . . Retrieved Components . | . . . . Parts Scanalyzed . | . . . . Part Schematics Acquired . | . . . . Parts Damaged . | . . . . Bothacking | -11 -10 -10 -9 ------------ Run | Yrd Mat Min Mat Used RIF Installer . | . . . . Robots Hacked . | . . . . Non-combat . | . . . . Combat . | . . . . Robot Hacks Applied . | . . . . Relay Couplers Released . | . . . . Fabnet Peak Effective % . | . . . . Robots Rewired . | . . . . Allies Hacked . | . . . . Hacks Repelled . | . . . . Allies | -11 -10 -10 -9 -------- Run | Yrd Mat Min Mat Total Allies . | . . . . Largest Group . | . . . . Highest-Rated Group . | . . . . Highest-Rated Ally . | . . . . Total Orders . | . . . . Ally Attacks . | . . . . Total Damage . | . . . . Kills . | . . . . Allies Corrupted . | . . . . Allies Melted . | . . . . Intel | -11 -10 -10 -9 ------- Run | Yrd Mat Min Mat Active Infowar (turns) 244 | . 53 72 119 Terrain 244 | . 53 72 119 Robot Analysis Total . | . . . . Derelict Logs Recovered . | . . . . Drone Launches . | . . . . Drone Recoveries . | . . . . Exploration | -11 -10 -10 -9 ------------- Run | Yrd Mat Min Mat Turns Passed 391 | 59 75 72 185 Spaces Moved 229 | 45 59 61 64 Core 12 | 12 . . . Treads . | . . . . Legs 217 | 33 59 61 64 Wheels . | . . . . Hover . | . . . . Flight . | . . . . Fastest Speed 50 | 50 120 120 120 Average Speed 116 | 101 120 120 120 Slowest Speed 120 | 120 120 120 120 Overloaded Moves . | . . . . Propulsion Burnouts . | . . . . Robots Hopped . | . . . . Potential Cave-ins . | . . . . Cave-ins Triggered . | . . . . Exploration Rate (%) 12 | 4 18 17 9 Regions Visited 3 Branch Regions 1 Pre-discovered Areas . | . . . . Known Exits Taken . | . . . . Unknown Exits Taken 3 | 1 1 1 . Scrap Searched . | . . . . Spaces Dug . | . . . . Terrain Destroyed . | . . . . Melee . | . . . . Projectile . | . . . . AOE . | . . . . Terrain Rammed . | . . . . Walls Destroyed . | . . . . Machines Disabled . | . . . . Actions | -11 -10 -10 -9 --------- Run | Yrd Mat Min Mat Total 316 | 58 61 60 137 Wait 35 | . . . 35 Move 226 | 44 58 60 64 Hop . | . . . . Pick Up 18 | 8 1 . 9 Fast Attach . | . . . . Attach 7 | 6 1 . . Detach . | . . . . Swap 5 | . . . 5 Drop 6 | . . . 6 Fire 19 | . 1 . 18 Melee . | . . . . Ram . | . . . . Kick . | . . . . Crush . | . . . . Escape Stasis . | . . . . Rewire . | . . . . Trap . | . . . . Miscellaneous . | . . . . Route ------- -11/Scrapyard -10/Materials -10/Mines -9/Materials History --------- Turn | Location | Event 2 | -11/Scrapyard | Met Revision 17 5 | -11/Scrapyard | Discovered new exit (range 14) 60 | -11/Scrapyard | Entered Materials 91 | -10/Materials | Discovered new exit (range 16) 135 | -10/Materials | Entered Mines 179 | -10/Mines | Discovered new exit (range 7) 207 | -10/Mines | Entered Materials 207 | -9/Materials | Evolved 2 slots: Propulsion x2 349 | -9/Materials | Build established: Mutant 392 | -9/Materials | Self-destructed Last Messages --------------- Particle Gun broken. Overheating: Short circuit. Overheating: Sml. Storage Unit damaged (-68). Overheating: Broken Particle Gun damaged (-7). Overheating: Matter decay (-29). Aluminum Leg destroyed. Overheating: Core damaged (-56). Y-45 Defender suffers critical hit (Burn). Overheating: System interference. Particle Gun temporarily disabled. Beam Rifle temporarily disabled. Y-45 Defender heat short circuits Hvy. Assault Rifle. Imp. Ion Engine broken. Overheating: Short circuit. Beam Rifle destroyed. Y-45 Defender heat damages Broken Hvy. Assault Rifle. Y-45 Defender heat damages core (-4). Overheating: Core damaged (-52). Map ----- +----------------------------------------------------+ | | | | | | | | | | | | | | | | | | | ?###############?????????????????????????????????? | | ?# # """ #?##########??????????????????????? | | ?# """ # "T" #?# #??????????????????????? | | ?# """ # #?# ##?????? ??????????????? | | ## """ # #?# [ #?????????????????????? | | ?# # #?# [ ##?????????????????????? | | ??? # #?# ##?????????????????????? | | #####+######+##### #??????????????????????? | | =##[ #?#????#???????????????? | | [%+[ #?????#????????????????? | | ##[ #??##???? ?????????????? | | #####+###### ######+###### #####??????????????? | | ???????????# #???# *+ #??????????????? | | ??# ?? ???# ##### # Y """#??????????????? | | ???????????#^ ^ # !** T"#??????????????? | | ??? ?? ????# r% ** """#??????????????? | | ?????????### ^ #@!** #??????????????? | | ?????? ????# # #??????????????? | | ???????????# # #??????????????? | | ????????? ""T"" # #??????????????? | | ????????? """"" ###########??????????????? | | ?????????? #????????????????????????? | | ?????????? #????????????????????????? | | ?????????############ #????????????????????????? | | ????????????????????# #????????????????????????? | | ????????????????????# ?????????????????????????? | | ????????????????????# ?????????????????????????? | | ????????????????????# ?????????????????????????? | | ????????????????????# ?????????????????????????? | | ????????????????????# ?????????????????????????? | | ???????????????????? ?????????????????????????? | | ????????????????????? ?????????????????????????? | | ?????????????????????????????????????????????????? | | ?????????????????????????????????????????????????? | | ?????????????????????????????????????????????????? | | ?????????????????????????????????????????????????? | | ?????????????????????????????????????????????????? | | ?????????????????????????????????????????????????? | | ?????????????????????????????????????????????????? | | ?????????????????????????????????????????????????? | | ?????????????????????????????????????????????????? | +----------------------------------------------------+ Best States ------------- Heat Dissipation 28 Energy Generation 12 Energy Capacity 265 Matter Stores 300 Matter Capacity 300 Sight Range 16 Terrain Scan Range 14 Terrain Scan Density 10 Evasion (%) 55 Targeting Accuracy 5 Item Schematics ----------------- None Robot Schematics ------------------ None Fabricated ------------ Nothing Repaired ---------- Nothing Studied --------- None Alien Tech Used ----------------- None Achievements -------------- None Challenges ------------ None Game ------ Seed DeflectorZeronetSpear Manual? 0 Play Time 00:06:36 Cumulative 20.8 hours Start 2025.12.19 @ 21:34:11 End 2025.12.19 @ 21:38:31 Sessions 1 Manual Loads 0 Difficulty Rogue Special Mode None Game No. 40 Rogue 39 Adventurer 1 Explorer 0 Win Type - Total 0 Types 0/0/0/0/0/0/0/0/0/0 Lore% 6 Gallery% 23 Achievement% 16 Wizard Run 0 Options --------- Layout 1 ASCII 0 Keyboard 0 Movement Arrows Keybinds 0 Fullscreen 1 Font 24/Smallcaps Map View 50x35 Zoom Use 0% Tactical HUD 0 Map Filters NONE Filters NONE Steam 1 RUN: 40912ffb-6b76-4f85-a09f-da03ed691973